[Event "Titled Tuesday Blitz August 10 2021"]
[White "Peralta, Eduardo"]
[Black "Grischuk, Alexander"]
[WhiteFideId "3700062"]
[BlackFideId "4126025"]
[WhiteElo "2205"]
[BlackElo "2777"]
[Result "0-1"]
[Round "05"]
[TimeControl "180+1"]
[Date "2021.08.10"]
[WhiteClock "0:00:14"]
[BlackClock "0:00:52"]

1. d4 {[%clk 0:03:00]}  Nf6 {[%clk 0:02:59]} 2. c4 {[%clk 0:03:00]}  e6 {[%clk 0:02:59]} 3. Nc3 {[%clk 0:03:00]}  Bb4 {[%clk 0:02:57]} 4. e3 {[%clk 0:02:59]}  O-O {[%clk 0:02:56]} 5. Nf3 {[%clk 0:02:57]}  d5 {[%clk 0:02:53]} 6. Bd3 {[%clk 0:02:54]}  dxc4 {[%clk 0:02:52]} 7. Bxc4 {[%clk 0:02:55]}  c5 {[%clk 0:02:52]} 8. O-O {[%clk 0:02:52]}  Nc6 {[%clk 0:02:49]} 9. a3 {[%clk 0:02:49]}  Ba5 {[%clk 0:02:50]} 10. h3 {[%clk 0:02:42]}  h6 {[%clk 0:02:43]} 11. Re1 {[%clk 0:02:23]}  cxd4 {[%clk 0:01:57]} 12. exd4 {[%clk 0:02:24]}  Bb6 {[%clk 0:01:58]} 13. Be3 {[%clk 0:02:23]}  Ne7 {[%clk 0:01:54]} 14. Bd3 {[%clk 0:02:21]}  Bd7 {[%clk 0:01:52]} 15. Ne4 {[%clk 0:02:17]}  Nxe4 {[%clk 0:01:50]} 16. Bxe4 {[%clk 0:02:18]}  Bc6 {[%clk 0:01:51]} 17. Bxc6 {[%clk 0:02:17]}  Nxc6 {[%clk 0:01:50]} 18. Qb3 {[%clk 0:02:06]}  Qd6 {[%clk 0:01:47]} 19. Red1 {[%clk 0:01:58]}  Rfd8 {[%clk 0:01:42]} 20. d5 {[%clk 0:01:55]}  Na5 {[%clk 0:01:41]} 21. Qb4 {[%clk 0:01:51]}  exd5 {[%clk 0:01:38]} 22. Bxb6 {[%clk 0:01:33]}  axb6 {[%clk 0:01:36]} 23. Rd3 {[%clk 0:01:25]}  Nc4 {[%clk 0:01:30]} 24. Rad1 {[%clk 0:01:20]}  Qxb4 {[%clk 0:01:30]} 25. axb4 {[%clk 0:01:20]}  Nxb2 {[%clk 0:01:30]} 26. R1d2 {[%clk 0:01:10]}  Nxd3 {[%clk 0:01:30]} 27. Rxd3 {[%clk 0:01:11]}  d4 {[%clk 0:01:30]} 28. g4 {[%clk 0:01:05]}  Rac8 {[%clk 0:01:27]} 29. Kf1 {[%clk 0:01:00]}  Rc3 {[%clk 0:01:24]} 30. Ke2 {[%clk 0:01:01]}  Kf8 {[%clk 0:01:21]} 31. Kd2 {[%clk 0:00:55]}  Rxd3+ {[%clk 0:01:21]} 32. Kxd3 {[%clk 0:00:56]}  Ke7 {[%clk 0:01:17]} 33. Nxd4 {[%clk 0:00:56]}  g6 {[%clk 0:01:06]} 34. Kc4 {[%clk 0:00:54]}  Kd6 {[%clk 0:01:07]} 35. f4 {[%clk 0:00:40]}  Re8 {[%clk 0:01:04]} 36. Nb5+ {[%clk 0:00:30]}  Kd7 {[%clk 0:01:03]} 37. Kd5 {[%clk 0:00:25]}  Re3 {[%clk 0:01:02]} 38. Nd4 {[%clk 0:00:18]}  Rxh3 {[%clk 0:01:02]} 39. Ke4 {[%clk 0:00:16]}  Rg3 {[%clk 0:00:58]} 40. Nf3 {[%clk 0:00:12]}  Rxf3 {[%clk 0:00:51]} 41. Kxf3 {[%clk 0:00:12]}  Ke6 {[%clk 0:00:51]} 42. Ke4 {[%clk 0:00:06]}  h5 {[%clk 0:00:49]} 43. gxh5 {[%clk 0:00:06]}  gxh5 {[%clk 0:00:49]} 44. f5+ {[%clk 0:00:04]}  Kf6 {[%clk 0:00:49]} 45. Kf4 {[%clk 0:00:05]}  h4 {[%clk 0:00:49]} 46. b5 {[%clk 0:00:04]}  h3 {[%clk 0:00:49]} 47. Kg3 {[%clk 0:00:05]}  Kxf5 {[%clk 0:00:50]} 48. Kxh3 {[%clk 0:00:05]}  Ke4 {[%clk 0:00:47]} 49. Kg2 {[%clk 0:00:04]}  Kd5 {[%clk 0:00:47]} 50. Kf3 {[%clk 0:00:05]}  Kc5 {[%clk 0:00:48]} 51. Ke4 {[%clk 0:00:05]}  Kxb5 {[%clk 0:00:49]} 52. Kf5 {[%clk 0:00:06]}  Kc4 {[%clk 0:00:49]} 53. Kf6 {[%clk 0:00:07]}  b5 {[%clk 0:00:50]} 54. Kxf7 {[%clk 0:00:07]}  b4 {[%clk 0:00:51]} 55. Ke6 {[%clk 0:00:08]}  b3 {[%clk 0:00:52]} 56. Kd6 {[%clk 0:00:09]}  b5 {[%clk 0:00:53]} 57. Kc7 {[%clk 0:00:10]}  b4 {[%clk 0:00:54]} 58. Kb6 {[%clk 0:00:10]}  b2 {[%clk 0:00:54]} 59. Ka5 {[%clk 0:00:11]}  b1=Q {[%clk 0:00:54]} 60. Kb6 {[%clk 0:00:12]}  Qa2 {[%clk 0:00:53]} 61. Kc7 {[%clk 0:00:11]}  b3 {[%clk 0:00:53]} 62. Kd6 {[%clk 0:00:11]}  b2 {[%clk 0:00:54]} 63. Ke5 {[%clk 0:00:12]}  b1=Q {[%clk 0:00:54]} 64. Kd6 {[%clk 0:00:13]}  Qb5 {[%clk 0:00:53]} 65. Ke7 {[%clk 0:00:14]}  Qaa6 {[%clk 0:00:52]} 66. Kd8 {[%clk 0:00:15]}  Qb8+ {[%clk 0:00:50]} 67. Kd7 {[%clk 0:00:15]}  Qbb7+ {[%clk 0:00:51]} 68. Kd8 {[%clk 0:00:14]}  Qaa8# {[%clk 0:00:52]} 0-1


[Site "https://www.chess.com"]

[Event "Titled Tuesday Blitz August 10 2021"]
[White "Priasmoro, Novendra"]
[Black "Kollars, Dmitrij"]
[WhiteFideId "7105029"]
[BlackFideId "12909572"]
[WhiteElo "2309"]
[BlackElo "2576"]
[Result "1-0"]
[Round "05"]
[TimeControl "180+1"]
[Date "2021.08.10"]
[WhiteClock "0:01:14"]
[BlackClock "0:00:19"]

1. e4 {[%clk 0:03:00]}  c6 {[%clk 0:02:58]} 2. d4 {[%clk 0:03:01]}  d5 {[%clk 0:02:58]} 3. exd5 {[%clk 0:03:01]}  cxd5 {[%clk 0:02:59]} 4. Bd3 {[%clk 0:03:02]}  Nc6 {[%clk 0:02:59]} 5. c3 {[%clk 0:03:02]}  Qc7 {[%clk 0:02:59]} 6. Ne2 {[%clk 0:03:02]}  Bg4 {[%clk 0:02:58]} 7. f3 {[%clk 0:03:02]}  Bd7 {[%clk 0:02:57]} 8. Bf4 {[%clk 0:03:01]}  e5 {[%clk 0:02:56]} 9. dxe5 {[%clk 0:03:02]}  Nxe5 {[%clk 0:02:57]} 10. O-O {[%clk 0:03:01]}  Bd6 {[%clk 0:02:53]} 11. Kh1 {[%clk 0:02:55]}  Ne7 {[%clk 0:02:41]} 12. Bc2 {[%clk 0:02:48]}  O-O {[%clk 0:02:37]} 13. Nd2 {[%clk 0:02:44]}  Rad8 {[%clk 0:02:30]} 14. Nd4 {[%clk 0:02:39]}  Rfe8 {[%clk 0:02:18]} 15. Re1 {[%clk 0:02:39]}  N7g6 {[%clk 0:02:15]} 16. Bg3 {[%clk 0:02:39]}  h5 {[%clk 0:02:00]} 17. h3 {[%clk 0:02:37]}  h4 {[%clk 0:01:56]} 18. Bh2 {[%clk 0:02:37]}  a6 {[%clk 0:01:49]} 19. Nf1 {[%clk 0:02:35]}  Ne7 {[%clk 0:01:11]} 20. Ne3 {[%clk 0:02:34]}  N5g6 {[%clk 0:01:07]} 21. Bxd6 {[%clk 0:02:33]}  Qxd6 {[%clk 0:01:07]} 22. Qd2 {[%clk 0:02:30]}  Nf4 {[%clk 0:01:06]} 23. Rad1 {[%clk 0:02:30]}  Qf6 {[%clk 0:01:05]} 24. Ng4 {[%clk 0:02:21]}  Bxg4 {[%clk 0:01:05]} 25. fxg4 {[%clk 0:02:22]}  Nc6 {[%clk 0:01:00]} 26. Nf5 {[%clk 0:02:20]}  g5 {[%clk 0:00:57]} 27. Re3 {[%clk 0:02:07]}  Rxe3 {[%clk 0:00:51]} 28. Qxe3 {[%clk 0:02:08]}  Kf8 {[%clk 0:00:51]} 29. Re1 {[%clk 0:02:07]}  d4 {[%clk 0:00:50]} 30. cxd4 {[%clk 0:02:06]}  Nxd4 {[%clk 0:00:51]} 31. Qc3 {[%clk 0:01:44]}  Qc6 {[%clk 0:00:43]} 32. Qb4+ {[%clk 0:01:34]}  Rd6 {[%clk 0:00:27]} 33. Be4 {[%clk 0:01:25]}  Nc2 {[%clk 0:00:20]} 34. Bxc6 {[%clk 0:01:14]}  Nxb4 {[%clk 0:00:19]} 35. Re8# {[%clk 0:01:14]} 1-0


[Site "https://www.chess.com"]

[Event "Titled Tuesday Blitz August 10 2021"]
[White "Quparadze, Giga"]
[Black "Kozionov, Kirill"]
[WhiteFideId "13602250"]
[BlackFideId "24101729"]
[WhiteElo "2658"]
[BlackElo "2501"]
[Result "1-0"]
[Round "05"]
[TimeControl "180+1"]
[Date "2021.08.10"]
[WhiteClock "0:00:34"]
[BlackClock "0:00:01"]

1. e4 {[%clk 0:03:00]}  c5 {[%clk 0:03:00]} 2. Ne2 {[%clk 0:02:59]}  Nf6 {[%clk 0:02:58]} 3. Nbc3 {[%clk 0:02:59]}  d6 {[%clk 0:02:58]} 4. g3 {[%clk 0:02:59]}  g6 {[%clk 0:02:58]} 5. Bg2 {[%clk 0:02:58]}  Nc6 {[%clk 0:02:58]} 6. d4 {[%clk 0:02:58]}  cxd4 {[%clk 0:02:57]} 7. Nxd4 {[%clk 0:02:59]}  Nxd4 {[%clk 0:02:58]} 8. Qxd4 {[%clk 0:02:58]}  Bg7 {[%clk 0:02:58]} 9. Qd3 {[%clk 0:02:58]}  O-O {[%clk 0:02:58]} 10. O-O {[%clk 0:02:57]}  Be6 {[%clk 0:02:56]} 11. Nd5 {[%clk 0:02:57]}  Rc8 {[%clk 0:02:34]} 12. c3 {[%clk 0:02:56]}  Nd7 {[%clk 0:02:31]} 13. Bg5 {[%clk 0:02:55]}  Re8 {[%clk 0:02:30]} 14. Rfe1 {[%clk 0:02:49]}  Ne5 {[%clk 0:02:28]} 15. Qe2 {[%clk 0:02:47]}  h6 {[%clk 0:02:13]} 16. Be3 {[%clk 0:02:45]}  Nc4 {[%clk 0:02:05]} 17. Bc1 {[%clk 0:02:33]}  Qa5 {[%clk 0:01:56]} 18. a4 {[%clk 0:02:21]}  Qd8 {[%clk 0:01:38]} 19. Ra2 {[%clk 0:02:17]}  Qd7 {[%clk 0:01:37]} 20. b3 {[%clk 0:02:17]}  Na5 {[%clk 0:01:36]} 21. b4 {[%clk 0:02:14]}  Nc4 {[%clk 0:01:31]} 22. Rd1 {[%clk 0:02:13]}  Bg4 {[%clk 0:01:24]} 23. f3 {[%clk 0:02:12]}  Be6 {[%clk 0:01:16]} 24. h4 {[%clk 0:02:11]}  Bh3 {[%clk 0:01:08]} 25. Kh2 {[%clk 0:02:07]}  Bxg2 {[%clk 0:01:07]} 26. Kxg2 {[%clk 0:02:08]}  e6 {[%clk 0:01:05]} 27. Ne3 {[%clk 0:01:54]}  Nxe3+ {[%clk 0:01:04]} 28. Bxe3 {[%clk 0:01:54]}  Rxc3 {[%clk 0:01:02]} 29. Bxa7 {[%clk 0:01:48]}  Qc7 {[%clk 0:00:38]} 30. Bf2 {[%clk 0:01:41]}  Rc8 {[%clk 0:00:34]} 31. a5 {[%clk 0:01:40]}  Rb3 {[%clk 0:00:31]} 32. Qd2 {[%clk 0:01:33]}  Qc4 {[%clk 0:00:29]} 33. Qxd6 {[%clk 0:01:27]}  Rxb4 {[%clk 0:00:24]} 34. Rdd2 {[%clk 0:01:21]}  Rb3 {[%clk 0:00:22]} 35. Qd7 {[%clk 0:01:15]}  Qc3 {[%clk 0:00:13]} 36. Kh2 {[%clk 0:01:15]}  Rf8 {[%clk 0:00:10]} 37. f4 {[%clk 0:00:54]}  Qf3 {[%clk 0:00:10]} 38. e5 {[%clk 0:00:46]}  Rb1 {[%clk 0:00:10]} 39. Bg1 {[%clk 0:00:46]}  Qf1 {[%clk 0:00:04]} 40. Rg2 {[%clk 0:00:45]}  h5 {[%clk 0:00:02]} 41. Raf2 {[%clk 0:00:39]}  Qc1 {[%clk 0:00:01]} 42. Qd3 {[%clk 0:00:36]}  Bh6 {[%clk 0:00:01]} 43. Rc2 {[%clk 0:00:35]}  Qd1 {[%clk 0:00:02]} 44. Qxd1 {[%clk 0:00:34]}  Rxd1 {[%clk 0:00:01]} 45. Rc7 {[%clk 0:00:34]} 1-0


[Site "https://www.chess.com"]

[Event "Titled Tuesday Blitz August 10 2021"]
[White "Sevian, Samuel"]
[Black "Khusnutdinov, Rustam"]
[WhiteFideId "2040506"]
[BlackFideId "13701703"]
[WhiteElo "2976"]
[BlackElo "2571"]
[Result "1-0"]
[Round "05"]
[TimeControl "180+1"]
[Date "2021.08.10"]
[WhiteClock "0:00:36"]
[BlackClock "0:00:13"]

1. e4 {[%clk 0:03:00]}  e6 {[%clk 0:02:56]} 2. d4 {[%clk 0:03:00]}  d5 {[%clk 0:02:56]} 3. e5 {[%clk 0:03:01]}  c5 {[%clk 0:02:55]} 4. c3 {[%clk 0:03:01]}  Nc6 {[%clk 0:02:55]} 5. Nf3 {[%clk 0:03:01]}  Bd7 {[%clk 0:02:56]} 6. Be2 {[%clk 0:03:01]}  Rc8 {[%clk 0:02:56]} 7. O-O {[%clk 0:03:01]}  a6 {[%clk 0:02:57]} 8. a3 {[%clk 0:03:01]}  cxd4 {[%clk 0:02:55]} 9. cxd4 {[%clk 0:03:00]}  Nge7 {[%clk 0:02:56]} 10. Nc3 {[%clk 0:02:55]}  Nf5 {[%clk 0:02:55]} 11. Be3 {[%clk 0:02:54]}  Be7 {[%clk 0:02:54]} 12. Bd3 {[%clk 0:02:54]}  Nxe3 {[%clk 0:02:52]} 13. fxe3 {[%clk 0:02:55]}  O-O {[%clk 0:02:52]} 14. Qc2 {[%clk 0:02:51]}  g6 {[%clk 0:02:52]} 15. Rf2 {[%clk 0:02:51]}  b5 {[%clk 0:02:44]} 16. Qe2 {[%clk 0:02:50]}  f5 {[%clk 0:02:35]} 17. exf6 {[%clk 0:02:47]}  Bxf6 {[%clk 0:02:35]} 18. Raf1 {[%clk 0:02:47]}  Qe7 {[%clk 0:02:35]} 19. Nd2 {[%clk 0:02:41]}  Na5 {[%clk 0:02:16]} 20. Kh1 {[%clk 0:02:37]}  Bg7 {[%clk 0:02:15]} 21. Rf4 {[%clk 0:02:35]}  Rxf4 {[%clk 0:02:13]} 22. exf4 {[%clk 0:02:35]}  Bxd4 {[%clk 0:01:59]} 23. Nxd5 {[%clk 0:02:35]}  Qg7 {[%clk 0:01:56]} 24. Ne3 {[%clk 0:02:29]}  Bxb2 {[%clk 0:01:46]} 25. Ng4 {[%clk 0:02:29]}  Rc1 {[%clk 0:01:31]} 26. Rxc1 {[%clk 0:02:19]}  Bxc1 {[%clk 0:01:32]} 27. Ne4 {[%clk 0:02:19]}  Bb2 {[%clk 0:01:25]} 28. Qd2 {[%clk 0:01:41]}  Nc6 {[%clk 0:01:18]} 29. Bb1 {[%clk 0:01:31]}  Bd4 {[%clk 0:01:12]} 30. Ba2 {[%clk 0:01:30]}  Kh8 {[%clk 0:00:54]} 31. h3 {[%clk 0:01:19]}  Qe7 {[%clk 0:00:49]} 32. Ne5 {[%clk 0:01:13]}  Bxe5 {[%clk 0:00:43]} 33. fxe5 {[%clk 0:01:14]}  Nxe5 {[%clk 0:00:43]} 34. Qd4 {[%clk 0:01:02]}  Qg7 {[%clk 0:00:43]} 35. Ng5 {[%clk 0:01:03]}  Nc4 {[%clk 0:00:36]} 36. Qf4 {[%clk 0:00:45]}  h6 {[%clk 0:00:24]} 37. Nf3 {[%clk 0:00:45]}  e5 {[%clk 0:00:22]} 38. Qe4 {[%clk 0:00:44]}  Bf5 {[%clk 0:00:22]} 39. Qa8+ {[%clk 0:00:44]}  Kh7 {[%clk 0:00:22]} 40. Qxa6 {[%clk 0:00:42]}  e4 {[%clk 0:00:22]} 41. Ng1 {[%clk 0:00:42]}  Qe5 {[%clk 0:00:21]} 42. Qb7+ {[%clk 0:00:42]}  Kh8 {[%clk 0:00:21]} 43. a4 {[%clk 0:00:39]}  Ne3 {[%clk 0:00:18]} 44. Qa8+ {[%clk 0:00:36]}  Kh7 {[%clk 0:00:13]} 45. Qg8# {[%clk 0:00:36]} 1-0


[Site "https://www.chess.com"]

[Event "Titled Tuesday Blitz August 10 2021"]
[White "Vokhidov, Shamsiddin"]
[Black "Taboas Rodriguez, Daniel"]
[WhiteFideId "14204223"]
[BlackFideId "2208466"]
[WhiteElo "2572"]
[BlackElo "2429"]
[Result "0-1"]
[Round "05"]
[TimeControl "180+1"]
[Date "2021.08.10"]
[WhiteClock "0:00:01"]
[BlackClock "0:00:08"]

1. Nf3 {[%clk 0:03:00]}  Nf6 {[%clk 0:02:59]} 2. c4 {[%clk 0:03:01]}  g6 {[%clk 0:03:00]} 3. g3 {[%clk 0:03:02]}  Bg7 {[%clk 0:03:01]} 4. Bg2 {[%clk 0:03:02]}  b6 {[%clk 0:03:01]} 5. O-O {[%clk 0:03:03]}  Bb7 {[%clk 0:03:02]} 6. Nc3 {[%clk 0:03:04]}  O-O {[%clk 0:03:02]} 7. b3 {[%clk 0:03:04]}  d5 {[%clk 0:03:00]} 8. cxd5 {[%clk 0:03:01]}  Nxd5 {[%clk 0:03:01]} 9. Bb2 {[%clk 0:03:01]}  Nxc3 {[%clk 0:02:58]} 10. dxc3 {[%clk 0:02:59]}  c5 {[%clk 0:02:52]} 11. Qc2 {[%clk 0:02:52]}  Nc6 {[%clk 0:02:51]} 12. Rad1 {[%clk 0:02:36]}  Qc7 {[%clk 0:02:51]} 13. Rd2 {[%clk 0:02:31]}  Rad8 {[%clk 0:02:51]} 14. Rfd1 {[%clk 0:02:31]}  Rxd2 {[%clk 0:02:51]} 15. Rxd2 {[%clk 0:02:31]}  Rd8 {[%clk 0:02:52]} 16. Ne1 {[%clk 0:02:26]}  Rxd2 {[%clk 0:02:49]} 17. Qxd2 {[%clk 0:02:27]}  Qd8 {[%clk 0:02:47]} 18. Qxd8+ {[%clk 0:02:20]}  Nxd8 {[%clk 0:02:48]} 19. Nd3 {[%clk 0:02:21]}  Bxg2 {[%clk 0:02:40]} 20. Kxg2 {[%clk 0:02:22]}  Nc6 {[%clk 0:02:33]} 21. Kf3 {[%clk 0:02:21]}  f5 {[%clk 0:02:31]} 22. e4 {[%clk 0:02:18]}  e6 {[%clk 0:02:08]} 23. exf5 {[%clk 0:02:16]}  exf5 {[%clk 0:02:08]} 24. Nf4 {[%clk 0:02:08]}  Kf7 {[%clk 0:02:07]} 25. Nd5 {[%clk 0:02:08]}  Ke6 {[%clk 0:02:03]} 26. Nf4+ {[%clk 0:02:08]}  Kd6 {[%clk 0:02:02]} 27. Ke2 {[%clk 0:02:08]}  b5 {[%clk 0:01:56]} 28. Kd3 {[%clk 0:02:00]}  c4+ {[%clk 0:01:49]} 29. Kc2 {[%clk 0:01:53]}  Ne5 {[%clk 0:01:49]} 30. Ba3+ {[%clk 0:01:52]}  Kc6 {[%clk 0:01:39]} 31. Ne6 {[%clk 0:01:49]}  Bh6 {[%clk 0:01:37]} 32. Bf8 {[%clk 0:01:23]}  Kd7 {[%clk 0:01:09]} 33. Nc5+ {[%clk 0:01:20]}  Kc6 {[%clk 0:01:09]} 34. Bxh6 {[%clk 0:01:18]}  Kxc5 {[%clk 0:01:10]} 35. Be3+ {[%clk 0:01:17]}  Kd5 {[%clk 0:01:01]} 36. Bxa7 {[%clk 0:01:18]}  g5 {[%clk 0:01:01]} 37. h3 {[%clk 0:01:08]}  h5 {[%clk 0:00:56]} 38. Kd2 {[%clk 0:00:56]}  Ke4 {[%clk 0:00:36]} 39. a4 {[%clk 0:00:56]}  cxb3 {[%clk 0:00:30]} 40. axb5 {[%clk 0:00:55]}  Nc4+ {[%clk 0:00:31]} 41. Kc1 {[%clk 0:00:56]}  Kd3 {[%clk 0:00:31]} 42. Bd4 {[%clk 0:00:55]}  g4 {[%clk 0:00:15]} 43. hxg4 {[%clk 0:00:54]}  hxg4 {[%clk 0:00:16]} 44. b6 {[%clk 0:00:54]}  Na5 {[%clk 0:00:16]} 45. Kb2 {[%clk 0:00:50]}  Kc4 {[%clk 0:00:16]} 46. Be5 {[%clk 0:00:44]}  Nb7 {[%clk 0:00:16]} 47. Bf4 {[%clk 0:00:38]}  Nc5 {[%clk 0:00:16]} 48. Be3 {[%clk 0:00:28]}  Nb7 {[%clk 0:00:11]} 49. Bd4 {[%clk 0:00:19]}  Na5 {[%clk 0:00:11]} 50. Bf6 {[%clk 0:00:19]}  Nb7 {[%clk 0:00:11]} 51. Be7 {[%clk 0:00:18]}  Na5 {[%clk 0:00:11]} 52. Bb4 {[%clk 0:00:17]}  Nb7 {[%clk 0:00:12]} 53. Ka3 {[%clk 0:00:17]}  Nd8 {[%clk 0:00:11]} 54. Bd6 {[%clk 0:00:15]}  Nb7 {[%clk 0:00:11]} 55. Bb4 {[%clk 0:00:15]}  Nd8 {[%clk 0:00:11]} 56. Kb2 {[%clk 0:00:15]}  Nb7 {[%clk 0:00:11]} 57. Be7 {[%clk 0:00:12]}  Na5 {[%clk 0:00:12]} 58. Bd8 {[%clk 0:00:12]}  Nb7 {[%clk 0:00:12]} 59. Bc7 {[%clk 0:00:13]}  Nc5 {[%clk 0:00:12]} 60. Bd6 {[%clk 0:00:12]}  Na4+ {[%clk 0:00:11]} 61. Kb1 {[%clk 0:00:10]}  Nxb6 {[%clk 0:00:12]} 62. Be5 {[%clk 0:00:07]}  Na4 {[%clk 0:00:13]} 63. Kc1 {[%clk 0:00:07]}  Nxc3 {[%clk 0:00:13]} 64. Bc7 {[%clk 0:00:05]}  Kd3 {[%clk 0:00:11]} 65. Kb2 {[%clk 0:00:04]}  Kc4 {[%clk 0:00:11]} 66. Be5 {[%clk 0:00:02]}  Ne4 {[%clk 0:00:11]} 67. Kc1 {[%clk 0:00:01]}  Nxf2 {[%clk 0:00:11]} 68. Kd2 {[%clk 0:00:02]}  Ne4+ {[%clk 0:00:10]} 69. Ke3 {[%clk 0:00:02]}  Nxg3 {[%clk 0:00:09]} 70. Kf4 {[%clk 0:00:02]}  Ne2+ {[%clk 0:00:07]} 71. Ke3 {[%clk 0:00:02]}  Nc3 {[%clk 0:00:07]} 72. Kd2 {[%clk 0:00:02]}  b2 {[%clk 0:00:08]} 73. Bxc3 {[%clk 0:00:01]}  b1=Q {[%clk 0:00:08]} 0-1


[Site "https://www.chess.com"]

[Event "Titled Tuesday Blitz August 10 2021"]
[White "Wagner, Dennis"]
[Black "Nguyen, Ngoc Truong Son"]
[WhiteFideId "24650684"]
[BlackFideId "12401110"]
[WhiteElo "2355"]
[BlackElo "2596"]
[Result "0-1"]
[Round "05"]
[TimeControl "180+1"]
[Date "2021.08.10"]
[WhiteClock "0:00:01"]
[BlackClock "0:00:35"]

1. d4 {[%clk 0:02:56]}  Nf6 {[%clk 0:02:59]} 2. c4 {[%clk 0:02:56]}  e6 {[%clk 0:03:00]} 3. Nf3 {[%clk 0:02:55]}  d5 {[%clk 0:02:59]} 4. g3 {[%clk 0:02:56]}  Bb4+ {[%clk 0:02:57]} 5. Bd2 {[%clk 0:02:56]}  Be7 {[%clk 0:02:55]} 6. Bg2 {[%clk 0:02:56]}  O-O {[%clk 0:02:55]} 7. O-O {[%clk 0:02:57]}  Nbd7 {[%clk 0:02:53]} 8. Qc2 {[%clk 0:02:56]}  c6 {[%clk 0:02:52]} 9. Bf4 {[%clk 0:02:55]}  Ne4 {[%clk 0:02:43]} 10. Nc3 {[%clk 0:02:53]}  g5 {[%clk 0:02:42]} 11. Be3 {[%clk 0:02:52]}  f5 {[%clk 0:02:41]} 12. Rad1 {[%clk 0:02:52]}  Bf6 {[%clk 0:02:33]} 13. Nxe4 {[%clk 0:02:46]}  fxe4 {[%clk 0:02:03]} 14. Nd2 {[%clk 0:02:40]}  Qe7 {[%clk 0:01:46]} 15. f3 {[%clk 0:02:38]}  e5 {[%clk 0:01:33]} 16. dxe5 {[%clk 0:02:19]}  Nxe5 {[%clk 0:01:34]} 17. cxd5 {[%clk 0:02:18]}  cxd5 {[%clk 0:01:30]} 18. fxe4 {[%clk 0:01:55]}  Ng4 {[%clk 0:01:22]} 19. Bc5 {[%clk 0:01:53]}  Qc7 {[%clk 0:01:21]} 20. e5 {[%clk 0:01:33]}  Be7 {[%clk 0:01:07]} 21. Bxd5+ {[%clk 0:01:30]}  Kg7 {[%clk 0:00:53]} 22. Ne4 {[%clk 0:00:33]}  Bf5 {[%clk 0:00:45]} 23. Rxf5 {[%clk 0:00:06]}  Rxf5 {[%clk 0:00:46]} 24. Nd6 {[%clk 0:00:07]}  Rxe5 {[%clk 0:00:39]} 25. Rf1 {[%clk 0:00:01]}  Bxd6 {[%clk 0:00:35]} 0-1


[Site "https://www.chess.com"]

[Event "Titled Tuesday Blitz August 10 2021"]
[White "Bologan, Victor"]
[Black "Ibarra Jerez, Jose Carlos"]
[WhiteFideId "13900048"]
[BlackFideId "2226332"]
[WhiteElo "2511"]
[BlackElo "2602"]
[Result "1-0"]
[Round "06"]
[TimeControl "180+1"]
[Date "2021.08.10"]
[WhiteClock "0:01:20"]
[BlackClock "0:00:36"]

1. e4 {[%clk 0:03:00]}  c5 {[%clk 0:02:58]} 2. Nf3 {[%clk 0:03:00]}  e6 {[%clk 0:02:58]} 3. d3 {[%clk 0:02:57]}  Nc6 {[%clk 0:02:56]} 4. g3 {[%clk 0:02:56]}  g6 {[%clk 0:02:56]} 5. Bg2 {[%clk 0:02:56]}  Bg7 {[%clk 0:02:57]} 6. O-O {[%clk 0:02:56]}  Nge7 {[%clk 0:02:57]} 7. c3 {[%clk 0:02:56]}  d5 {[%clk 0:02:54]} 8. Qe2 {[%clk 0:02:55]}  h6 {[%clk 0:02:47]} 9. h4 {[%clk 0:02:53]}  O-O {[%clk 0:02:17]} 10. e5 {[%clk 0:02:52]}  b6 {[%clk 0:02:11]} 11. Bf4 {[%clk 0:02:49]}  a5 {[%clk 0:02:03]} 12. a4 {[%clk 0:02:47]}  Ba6 {[%clk 0:02:03]} 13. Na3 {[%clk 0:02:47]}  Qd7 {[%clk 0:02:03]} 14. Rfe1 {[%clk 0:02:40]}  Rac8 {[%clk 0:01:34]} 15. Nb5 {[%clk 0:02:33]}  Rcd8 {[%clk 0:01:22]} 16. Qd2 {[%clk 0:02:08]}  Kh7 {[%clk 0:01:22]} 17. Kh2 {[%clk 0:02:05]}  d4 {[%clk 0:01:13]} 18. c4 {[%clk 0:02:02]}  Nb4 {[%clk 0:01:12]} 19. Rh1 {[%clk 0:01:57]}  Bb7 {[%clk 0:01:11]} 20. Nd6 {[%clk 0:01:50]}  Bc6 {[%clk 0:01:11]} 21. b3 {[%clk 0:01:45]}  Nf5 {[%clk 0:01:11]} 22. Ne4 {[%clk 0:01:42]}  Bxe4 {[%clk 0:01:05]} 23. dxe4 {[%clk 0:01:41]}  Ne7 {[%clk 0:01:05]} 24. h5 {[%clk 0:01:37]}  g5 {[%clk 0:00:57]} 25. Bxg5 {[%clk 0:01:37]}  hxg5 {[%clk 0:00:58]} 26. Nxg5+ {[%clk 0:01:35]}  Kg8 {[%clk 0:00:52]} 27. h6 {[%clk 0:01:34]}  Bxe5 {[%clk 0:00:50]} 28. Nf3 {[%clk 0:01:25]}  Ng6 {[%clk 0:00:37]} 29. Nxe5 {[%clk 0:01:23]}  Nxe5 {[%clk 0:00:37]} 30. Qg5+ {[%clk 0:01:23]}  Ng6 {[%clk 0:00:36]} 31. Qf6 {[%clk 0:01:20]} 1-0


[Site "https://www.chess.com"]

[Event "Titled Tuesday Blitz August 10 2021"]
[White "Fawzy, Adham"]
[Black "Pichot, Alan"]
[WhiteFideId "10613129"]
[BlackFideId "110973"]
[WhiteElo "2480"]
[BlackElo "2622"]
[Result "1-0"]
[Round "06"]
[TimeControl "180+1"]
[Date "2021.08.10"]
[WhiteClock "0:00:21"]
[BlackClock "0:00:01"]

1. e4 {[%clk 0:03:00]}  c5 {[%clk 0:02:57]} 2. c4 {[%clk 0:03:00]}  Nc6 {[%clk 0:02:55]} 3. Nc3 {[%clk 0:03:01]}  Nf6 {[%clk 0:02:55]} 4. Nge2 {[%clk 0:03:01]}  e5 {[%clk 0:02:54]} 5. g3 {[%clk 0:03:01]}  g6 {[%clk 0:02:54]} 6. Bg2 {[%clk 0:03:02]}  Bg7 {[%clk 0:02:55]} 7. O-O {[%clk 0:03:02]}  O-O {[%clk 0:02:56]} 8. d3 {[%clk 0:03:03]}  d6 {[%clk 0:02:56]} 9. a3 {[%clk 0:03:03]}  Rb8 {[%clk 0:02:56]} 10. Rb1 {[%clk 0:03:02]}  a6 {[%clk 0:02:56]} 11. b4 {[%clk 0:03:03]}  cxb4 {[%clk 0:02:57]} 12. axb4 {[%clk 0:03:04]}  b5 {[%clk 0:02:57]} 13. cxb5 {[%clk 0:03:05]}  axb5 {[%clk 0:02:58]} 14. h3 {[%clk 0:03:04]}  Be6 {[%clk 0:02:56]} 15. Be3 {[%clk 0:03:04]}  Qd7 {[%clk 0:02:53]} 16. Kh2 {[%clk 0:03:03]}  d5 {[%clk 0:02:53]} 17. Bc5 {[%clk 0:02:32]}  Rfd8 {[%clk 0:02:52]} 18. exd5 {[%clk 0:02:32]}  Nxd5 {[%clk 0:02:52]} 19. Ne4 {[%clk 0:02:32]}  h6 {[%clk 0:02:47]} 20. f4 {[%clk 0:02:10]}  exf4 {[%clk 0:02:36]} 21. Nxf4 {[%clk 0:02:00]}  Nxf4 {[%clk 0:02:36]} 22. Rxf4 {[%clk 0:02:01]}  Bd5 {[%clk 0:02:07]} 23. Rf6 {[%clk 0:01:23]}  Qc7 {[%clk 0:01:36]} 24. Bd6 {[%clk 0:01:04]}  Rxd6 {[%clk 0:01:08]} 25. Rxd6 {[%clk 0:01:01]}  Bxe4 {[%clk 0:01:08]} 26. dxe4 {[%clk 0:01:01]}  Be5 {[%clk 0:01:09]} 27. Rd7 {[%clk 0:01:00]}  Bxg3+ {[%clk 0:01:09]} 28. Kh1 {[%clk 0:01:00]}  Qf4 {[%clk 0:01:09]} 29. Qd5 {[%clk 0:00:54]}  Ne5 {[%clk 0:00:53]} 30. Rf1 {[%clk 0:00:53]}  Nxd7 {[%clk 0:00:06]} 31. Rxf4 {[%clk 0:00:52]}  Bxf4 {[%clk 0:00:07]} 32. Qxd7 {[%clk 0:00:52]}  Ra8 {[%clk 0:00:08]} 33. Qxb5 {[%clk 0:00:46]}  Ra1+ {[%clk 0:00:07]} 34. Bf1 {[%clk 0:00:47]}  Kg7 {[%clk 0:00:07]} 35. Qc4 {[%clk 0:00:38]}  Be5 {[%clk 0:00:06]} 36. b5 {[%clk 0:00:35]}  Rb1 {[%clk 0:00:06]} 37. Kg2 {[%clk 0:00:36]}  g5 {[%clk 0:00:05]} 38. Be2 {[%clk 0:00:36]}  Rb2 {[%clk 0:00:04]} 39. Kf3 {[%clk 0:00:35]}  h5 {[%clk 0:00:05]} 40. Qc5 {[%clk 0:00:33]}  f6 {[%clk 0:00:04]} 41. Qe7+ {[%clk 0:00:31]}  Kg6 {[%clk 0:00:04]} 42. Bc4 {[%clk 0:00:29]}  g4+ {[%clk 0:00:02]} 43. hxg4 {[%clk 0:00:29]}  h4 {[%clk 0:00:02]} 44. Qe8+ {[%clk 0:00:27]}  Kh6 {[%clk 0:00:02]} 45. Qh5+ {[%clk 0:00:23]}  Kg7 {[%clk 0:00:02]} 46. g5 {[%clk 0:00:21]}  Rc2 {[%clk 0:00:01]} 47. Qh6# {[%clk 0:00:21]} 1-0


[Site "https://www.chess.com"]